Workbook

Sheet TRIMESTRE
B1: MI HORARIO DE CLASES
B2: TRIMESTRE DE OTOÑO
C3: HORA DE INICIO | D3: INTERVALO DE TIEMPO | F3: AÑO
C4: 09:00:00 | D4: 60 | E4: (en minutos)
B5: HORA | C5: LUN | D5: MAR | E5: MIÉ | F5: JUE | G5: VIE | H5: SÁB | I5: DOM
B6: =Hora_de_inicio+TIME(0,(ROW(A1)-1)*Intervalo_de_tiempo,0) -> 09:00:00 | C6: Desayuno | D6: Desayuno | E6: Desayuno | F6: Desayuno | G6: Desayuno
B7: 10:00:00 | C7: Empresariales: Seminario, Edificio B, aula 256
B8: 11:00:00 | F8: Física: Laboratorio Edificio J, aula 309
B9: 12:00:00
B10: 13:00:00
B11: 14:00:00
B12: 15:00:00
B13: 16:00:00
B14: 17:00:00
B15: 18:00:00
B16: 19:00:00
B17: 20:00:00
B18: 21:00:00
B19: 22:00:00
B20: 23:00:00
B21: 1
B22: =Hora_de_inicio+TIME(0,(ROW(A17)-1)*Intervalo_de_tiempo,0) -> 1.041666667
B23: 1.083333333
B24: 1.125
B25: 1.166666667
B26: 1.208333333
B27: 1.25
B28: 1.291666667
B29: 1.333333333

Sheet CRÉDITOS
B1: FACULTAD
B2: PLAN DE CRÉDITOS
B3: Nombre del grado | C3: =Año -> AÑO
B4: PROGRESO GENERAL | D4: PROGRESO GENERAL
B5: =AVERAGE(Cursos[CALIFICACIÓN]) -> 3.5 | C5: =IFERROR(TEXT(AVERAGEIF(Cursos[COMPLETADO],"Sí",Cursos[CALIFICACIÓN]),"0,00"),"0,00")&" Nota media actual" -> 004 Nota media actual | D5: =COUNTIF(Cursos[COMPLETADO],"Sí")/COUNTA(Cursos[NOMBRE DEL CURSO]) -> 0.6666666667 | E5: =TEXT(COUNTIF(Cursos[COMPLETADO],"Sí")/COUNTA(Cursos[NOMBRE DEL CURSO]),"0%")&" completado" -> 67% completado
B6: Nota: El siguiente resumen de créditos se genera automáticamente con las entradas en la tabla de cursos universitarios siguiente.
B7: REQUISITO | C7: CRÉDITOS TOTALES | D7: ACUMULADO | E7: NECESARIOS
B8: Especialización académica | C8: =IF(SUMIF(Cursos[REQUISITO],CRÉDITOS!$B8,Cursos[CRÉDITOS])=0,"0",SUMIF(Cursos[REQUISITO],CRÉDITOS!$B8,Cursos[CRÉDITOS])) -> 4 | D8: =SUMIFS(Cursos[CRÉDITOS],Cursos[REQUISITO],CRÉDITOS!$B8,Cursos[COMPLETADO],"Sí") -> 4 | E8: =SUMIF(Cursos[REQUISITO],CRÉDITOS!$B8,Cursos[CRÉDITOS])-SUMIFS(Cursos[CRÉDITOS],Cursos[REQUISITO],CRÉDITOS!$B8,Cursos[COMPLETADO],"Sí") -> 0
B9: Estudios secundarios | C9: =IF(SUMIF(Cursos[REQUISITO],CRÉDITOS!$B9,Cursos[CRÉDITOS])=0,"0",SUMIF(Cursos[REQUISITO],CRÉDITOS!$B9,Cursos[CRÉDITOS])) -> 3 | D9: =SUMIFS(Cursos[CRÉDITOS],Cursos[REQUISITO],CRÉDITOS!$B9,Cursos[COMPLETADO],"Sí") -> 0 | E9: =SUMIF(Cursos[REQUISITO],CRÉDITOS!$B9,Cursos[CRÉDITOS])-SUMIFS(Cursos[CRÉDITOS],Cursos[REQUISITO],CRÉDITOS!$B9,Cursos[COMPLETADO],"Sí") -> 3
B10: Curso optativo | C10: =IF(SUMIF(Cursos[REQUISITO],CRÉDITOS!$B10,Cursos[CRÉDITOS])=0,"0",SUMIF(Cursos[REQUISITO],CRÉDITOS!$B10,Cursos[CRÉDITOS])) -> 2 | D10: =SUMIFS(Cursos[CRÉDITOS],Cursos[REQUISITO],CRÉDITOS!$B10,Cursos[COMPLETADO],"Sí") -> 2 | E10: =SUMIF(Cursos[REQUISITO],CRÉDITOS!$B10,Cursos[CRÉDITOS])-SUMIFS(Cursos[CRÉDITOS],Cursos[REQUISITO],CRÉDITOS!$B10,Cursos[COMPLETADO],"Sí") -> 0
B11: Estudio general | C11: =IF(SUMIF(Cursos[REQUISITO],CRÉDITOS!$B11,Cursos[CRÉDITOS])=0,"0",SUMIF(Cursos[REQUISITO],CRÉDITOS!$B11,Cursos[CRÉDITOS])) -> 0 | D11: =SUMIFS(Cursos[CRÉDITOS],Cursos[REQUISITO],CRÉDITOS!$B11,Cursos[COMPLETADO],"Sí") -> 0 | E11: =SUMIF(Cursos[REQUISITO],CRÉDITOS!$B11,Cursos[CRÉDITOS])-SUMIFS(Cursos[CRÉDITOS],Cursos[REQUISITO],CRÉDITOS!$B11,Cursos[COMPLETADO],"Sí") -> 0
B12: Total | C12: =SUBTOTAL(109,CRÉDITOS!$C$8:$C$11) -> 9 | D12: =SUBTOTAL(109,CRÉDITOS!$D$8:$D$11) -> 6 | E12: =SUBTOTAL(109,CRÉDITOS!$E$8:$E$11) -> 3
B13: Cursos
B14: NOMBRE DEL CURSO | C14: N.º DEL CURSO | D14: REQUISITO | E14: CRÉDITOS | F14: COMPLETADO | G14: CALIFICACIÓN | H14: TRIMESTRE
B15: Curso 1 | C15: Número | D15: Especialización académica | E15: 4 | F15: Sí | G15: 4.0 | H15: Trimestre 1
B16: Curso 2 | C16: Número | D16: Estudios secundarios | E16: 3 | F16: No | H16: Trimestre 1
B17: Curso 3 | C17: Número | D17: Curso optativo | E17: 2 | F17: Sí | G17: 3.0 | H17: Trimestre 1

Sheet PRESUPUESTO
B1: =Facultad -> FACULTAD
B2: SEGUIMIENTO DE PRESUPUESTO
B3: Mi presupuesto | C3: =Año -> AÑO
B4: PORCENTAJE DE INGRESOS GASTADOS
B5: =GASTOS_MENSUALES_NETOS/INGRESOS_MENSUALES_NETOS -> 75%
B6: =B5 -> 0.7454545455
B7: INGRESOS MENSUALES NETOS | C7: GASTOS MENSUALES NETOS | D7: SALDO
B8: =C10 -> 2,750 € | C8: ='GASTOS MENSUALES NETOS'!C4+'GASTOS TRIMESTRALES'!D4 -> 2,050 € | D8: =INGRESOS_MENSUALES_NETOS-GASTOS_MENSUALES_NETOS -> 700 €
B9: Meses del trimestre | C9: 4
B10: INGRESOS MENSUALES | C10: =SUM(IngresosMensuales[CANTIDAD]) -> 2,750 €
B11: ELEMENTO | C11: CANTIDAD
B12: Ingresos fijos | C12: 1,500 €
B13: Ayuda financiera | C13: 500 €
B14: Préstamos | C14: 500 €
B15: Otros ingresos | C15: 250 €

Sheet GASTOS MENSUALES NETOS
B1: =Facultad -> FACULTAD
B2: SEGUIMIENTO DE PRESUPUESTO
B3: Gastos mensuales | C3: =Año -> AÑO
B4: GASTOS MENSUALES | C4: =SUM(GastosMensuales[CANTIDAD]) -> 1,675 €
B5: ELEMENTO | C5: CANTIDAD
B6: Alquiler | C6: 300 €
B7: Servicios públicos | C7: 50 €
B8: Teléfono móvil | C8: 75 €
B9: Comestibles | C9: 250 €
B10: Gastos del coche | C10: 50 €
B11: Préstamos para estudiantes | C11: 500 €
B12: Tarjetas de crédito | C12: 275 €
B13: Seguro | C13: 125 €
B14: Entretenimiento | C14: 50 €
B15: Varios | C15: 0 €

Sheet GASTOS TRIMESTRALES
B1: =Facultad -> FACULTAD
B2: SEGUIMIENTO DE PRESUPUESTO
B3: Gastos trimestrales | C3: =Año -> AÑO
B4: GASTOS TRIMESTRALES (total/por mes) | C4: =SUM(Gastos_trimestrales[CANTIDAD]) -> 1,500 € | D4: =SUM(Gastos_trimestrales[POR MES]) -> 375 €
B5: ELEMENTO | C5: CANTIDAD | D5: POR MES
B6: Matrícula | C6: 750 € | D6: =Gastos_trimestrales[[#This Row],[CANTIDAD]]/Months_in_term -> 188 €
B7: Gastos de laboratorio | C7: 250 € | D7: =Gastos_trimestrales[[#This Row],[CANTIDAD]]/Months_in_term -> 63 €
B8: Libros | C8: 500 € | D8: =Gastos_trimestrales[[#This Row],[CANTIDAD]]/Months_in_term -> 125 €
B9: Depósitos | C9: 0 € | D9: =Gastos_trimestrales[[#This Row],[CANTIDAD]]/Months_in_term -> 0 €
B10: Transporte | C10: 0 € | D10: =Gastos_trimestrales[[#This Row],[CANTIDAD]]/Months_in_term -> 0 €
B11: Otros gastos | C11: 0 € | D11: =Gastos_trimestrales[[#This Row],[CANTIDAD]]/Months_in_term -> 0 €

Sheet LIBROS
B1: =Facultad -> FACULTAD
B2: SEGUIMIENTO DE LIBROS
B3: Lista de libros
B4: TÍTULO | C4: AUTOR | D4: CURSO | E4: ¿DÓNDE SE PUEDE COMPRAR? | F4: ISBN | G4: NOTAS
B5: Título del libro | C5: Autor | D5: Curso | E5: Ubicación | F5: Número
B6: Título del libro | C6: Autor | D6: Curso | E6: Ubicación | F6: Número
B7: Título del libro | C7: Autor | D7: Curso | E7: Ubicación | F7: Número
